fUSD/lending_fUSD_20250901
["ID","MTS","AMOUNT","RATE_DAILY","PERIOD"]
[382926235,1756770676626,-151.0,0.0003726,30]
[382926236,1756770676635,-153.188824,0.0003726,30]
[382926237,1756770676645,-400.0,0.0003726,14]
[382926238,1756770676655,-674.48,0.0003726,14]
[382926239,1756770676664,-400.0,0.0003726,14]
[382926240,1756770676673,-851.0,0.0003726,14]
[382926241,1756770676682,-179.008577,0.0003726,30]
[382926242,1756770676691,-400.0,0.0003726,14]
[382926243,1756770676700,-400.0,0.0003726,14]
[382926244,1756770676710,-400.0,0.0003726,14]
[382926245,1756770676719,-589.32,0.0003726,14]
[382926246,1756770676728,-400.0,0.0003726,14]
[382926247,1756770676737,-151.0,0.0003726,30]
[382926248,1756770676745,-400.0,0.0003726,14]
[382926249,1756770676754,-151.0,0.0003726,30]
[382926250,1756770676763,-400.0,0.0003726,14]
[382926251,1756770676772,-400.0,0.0003726,14]
[382926252,1756770676782,-400.0,0.0003726,14]
[382926253,1756770676791,-400.0,0.0003726,14]
[382926254,1756770676800,-606.16,0.0003726,14]
[382926255,1756770676810,-400.0,0.0003726,14]
[382926256,1756770676819,-661.85,0.0003726,14]
[382926257,1756770676828,-400.0,0.0003726,14]
[382926258,1756770676837,-551.5,0.0003726,14]
[382926259,1756770676847,-558.11,0.0003726,14]
[382926260,1756770676856,-400.0,0.0003726,14]
[382926261,1756770676866,-400.0,0.0003726,14]
[382926262,1756770676875,-400.0,0.0003726,14]
[382926263,1756770676885,-400.0,0.0003726,14]
[382926264,1756770676895,-400.0,0.0003726,14]
[382926265,1756770676904,-400.0,0.0003726,14]
[382926266,1756770676913,-620.07,0.0003726,14]
[382926267,1756770676923,-459.17,0.0003726,14]
[382926268,1756770676933,-151.0,0.0003726,30]
[382926269,1756770676944,-400.0,0.0003726,14]
[382926270,1756770676953,-400.0,0.0003726,14]
[382926271,1756770676962,-400.0,0.0003726,14]
[382926272,1756770676974,-1000.0,0.0003726,14]
[382926273,1756770676985,-400.0,0.0003726,14]
[382926274,1756770676996,-1964.27,0.0003726,14]
[382926275,1756770677007,-400.0,0.0003726,14]
[382926276,1756770677017,-720.61,0.0003726,14]
[382926277,1756770677031,-400.0,0.0003726,14]
[382926278,1756770677042,-400.0,0.0003726,14]
[382926279,1756770677052,-400.0,0.0003726,14]
[382926280,1756770677062,-400.0,0.0003726,14]
[382926281,1756770677072,-400.0,0.0003726,14]
[382926282,1756770677081,-531.29276192,0.0003726,14]
[382926283,1756770677090,-1271.53,0.0003726,14]
[382926284,1756770677099,-520.7,0.0003726,14]
[382926285,1756770677108,-400.0,0.0003726,14]
[382926286,1756770677116,-151.0,0.0003726,30]
[382926287,1756770677124,-400.0,0.0003726,14]
[382926288,1756770677135,-151.0,0.0003726,30]
[382926289,1756770677144,-400.0,0.0003726,14]
[382926290,1756770677154,-400.0,0.0003726,14]
[382926291,1756770677163,-400.0,0.0003726,14]
[382926292,1756770677172,-637.55,0.0003726,14]
[382926293,1756770677183,-400.0,0.0003726,14]
[382926294,1756770677193,-474.14,0.0003726,14]
[382926295,1756770677203,-710.39,0.0003726,14]
[382926296,1756770677212,-400.0,0.0003726,14]
[382926297,1756770677224,-400.0,0.0003726,14]
[382926298,1756770677233,-400.0,0.0003726,14]
[382926299,1756770677243,-400.0,0.0003726,14]
[382926300,1756770677252,-791.55,0.0003726,14]
[382926301,1756770677262,-400.0,0.0003726,14]
[382926302,1756770677272,-400.0,0.0003726,14]
[382926303,1756770677282,-400.0,0.0003726,14]
[382926304,1756770677292,-400.0,0.0003726,14]
[382926305,1756770677301,-400.0,0.0003726,14]
[382926306,1756770677311,-400.0,0.0003726,14]
[382926307,1756770677324,-400.0,0.0003726,14]
[382926308,1756770677334,-400.0,0.0003726,14]
[382926309,1756770677344,-400.0,0.0003726,14]
[382926310,1756770677355,-400.0,0.0003726,14]
[382926311,1756770677364,-400.0,0.0003726,14]
[382926312,1756770677373,-471.88,0.0003726,14]
[382926313,1756770677383,-400.0,0.0003726,14]
[382926314,1756770677396,-151.0,0.0003726,30]
[382926315,1756770677406,-151.0,0.0003726,30]
[382926316,1756770677416,-409.67,0.0003726,14]
[382926317,1756770677426,-151.0,0.0003726,30]
[382926318,1756770677439,-151.0,0.0003726,30]
[382926319,1756770677449,-400.0,0.0003726,14]
[382926320,1756770677458,-151.0,0.0003726,30]
[382926321,1756770677468,-151.0,0.0003726,30]
[382926322,1756770677478,-400.0,0.0003726,14]
[382926323,1756770677488,-400.0,0.0003726,14]
[382926324,1756770677496,-400.0,0.0003726,14]
[382926325,1756770677504,-400.0,0.0003726,14]
[382926326,1756770677512,-400.0,0.0003726,14]
[382926327,1756770677521,-400.0,0.0003726,14]
[382926328,1756770677531,-400.0,0.0003726,14]
[382926329,1756770677540,-400.0,0.0003726,14]
[382926330,1756770677550,-400.0,0.0003726,14]
[382926331,1756770677559,-608.07,0.0003726,14]
[382926332,1756770677568,-400.0,0.0003726,14]
[382926333,1756770677578,-400.0,0.0003726,14]
[382926334,1756770677597,-527.47,0.0003726,14]
[382926335,1756770677615,-504.44,0.0003726,14]
[382926336,1756770677624,-400.0,0.0003726,14]
[382926337,1756770677634,-579.87,0.0003726,14]
[382926338,1756770677643,-614.07,0.0003726,14]
[382926339,1756770677652,-400.0,0.0003726,14]
[382926340,1756770677661,-400.0,0.0003726,14]
[382926341,1756770677671,-151.0,0.0003726,30]
[382926342,1756770677680,-151.0,0.0003726,30]
[382926343,1756770677689,-151.0,0.0003726,30]
[382926344,1756770677698,-400.0,0.0003726,14]
[382926345,1756770677707,-151.0,0.0003726,30]
[382926346,1756770677716,-400.0,0.0003726,14]
[382926347,1756770677725,-151.0,0.0003726,30]
[382926348,1756770677735,-270.314125,0.0003726,30]
[382926349,1756770677744,-403.40377882,0.0003726,14]
[382926350,1756770677753,-400.0,0.0003726,14]
[382926351,1756770677763,-400.0,0.0003726,14]
[382926352,1756770677772,-1415.25,0.0003726,14]
[382926353,1756770677781,-151.0,0.0003726,30]
[382926354,1756770677791,-151.0,0.0003726,30]
[382926355,1756770677800,-400.0,0.0003726,14]
[382926356,1756770677809,-400.0,0.0003726,14]
[382926357,1756770677819,-249.362408,0.0003726,30]
[382926358,1756770677828,-708.84,0.0003726,14]
[382926359,1756770677838,-400.0,0.0003726,14]
[382926360,1756770677847,-400.0,0.0003726,14]
[382926361,1756770677856,-400.0,0.0003726,14]
[382926362,1756770677865,-400.0,0.0003726,14]
[382926363,1756770677875,-400.0,0.0003726,14]
[382926364,1756770677884,-400.0,0.0003726,14]
[382926365,1756770677894,-400.67,0.0003726,14]
[382926366,1756770677903,-400.0,0.0003726,14]
[382926367,1756770677913,-400.0,0.0003726,14]
[382926368,1756770677922,-400.0,0.0003726,14]
[382926369,1756770677931,-400.0,0.0003726,14]
[382926370,1756770677940,-400.0,0.0003726,14]
[382926371,1756770677949,-400.0,0.0003726,14]
[382926372,1756770677959,-151.0,0.0003726,30]
[382926373,1756770677968,-400.0,0.0003726,14]
[382926374,1756770677977,-151.0,0.0003726,30]
[382926375,1756770677987,-546.46,0.0003726,14]
[382926376,1756770677996,-676.24,0.0003726,14]
[382926377,1756770678005,-400.0,0.0003726,14]
[382926378,1756770678015,-400.0,0.0003726,14]
[382926379,1756770678025,-569.88,0.0003726,14]
[382926380,1756770678034,-400.0,0.0003726,14]
[382926381,1756770678044,-270.832172,0.0003726,14]
[382926382,1756770678054,-400.0,0.0003726,14]
[382926383,1756770678063,-400.0,0.0003726,14]
[382926384,1756770678073,-502.02,0.0003726,14]
[382926385,1756770678083,-398.626943,0.0003726,14]
[382926386,1756770678092,-447.489789,0.0003726,14]
[382926387,1756770678102,-400.0,0.0003726,14]
[382926388,1756770678111,-398.626943,0.0003726,14]
[382926389,1756770678120,-400.0,0.0003726,14]
[382926390,1756770678130,-680.2,0.0003726,14]
[382926391,1756770678140,-400.0,0.0003726,14]
[382926392,1756770678149,-152.513179,0.0003726,30]
[382926393,1756770678159,-151.0,0.0003726,30]
[382926394,1756770678169,-608.97,0.0003726,14]
[382926395,1756770678178,-151.0,0.0003726,30]
[382926396,1756770678187,-400.0,0.0003726,14]
[382926397,1756770678197,-151.0,0.0003726,30]
[382926398,1756770678206,-151.0,0.0003726,30]
[382926399,1756770678215,-151.0,0.0003726,30]
[382926400,1756770678225,-151.0,0.0003726,30]
[382926401,1756770678235,-220.30514,0.0003726,30]
[382926402,1756770678245,-468.69,0.0003726,14]
[382926403,1756770678256,-151.0,0.0003726,30]
[382926404,1756770678266,-151.0,0.0003726,30]
[382926405,1756770678275,-400.0,0.0003726,14]
[382926406,1756770678284,-189.257853,0.0003726,30]
[382926407,1756770678294,-151.0,0.0003726,30]
[382926408,1756770678303,-151.0,0.0003726,30]
[382926409,1756770678313,-189.257853,0.0003726,30]
[382926410,1756770678323,-400.0,0.0003726,14]
[382926411,1756770678333,-189.257853,0.0003726,30]
[382926412,1756770678343,-189.257853,0.0003726,30]
[382926413,1756770678353,-400.0,0.0003726,14]
[382926414,1756770678362,-189.257853,0.0003726,30]
[382926415,1756770678372,-189.257853,0.0003726,30]
[382926416,1756770678383,-189.257853,0.0003726,30]
[382926417,1756770678395,-400.0,0.0003726,14]
[382926418,1756770678406,-189.257853,0.0003726,30]
[382926419,1756770678415,-400.0,0.0003726,14]
[382926420,1756770678425,-501.44,0.0003726,14]
[382926421,1756770678438,-415.18,0.0003726,14]
[382926422,1756770678448,-777.42,0.0003726,14]
[382926423,1756770678458,-405.38803985,0.0003726,14]
[382926424,1756770678469,-463.86,0.0003726,14]
[382926425,1756770678479,-400.0,0.0003726,14]
[382926426,1756770678488,-400.0,0.0003726,14]
[382926427,1756770678498,-400.0,0.0003726,14]
[382926428,1756770678508,-400.0,0.0003726,14]
[382926429,1756770678518,-400.0,0.0003726,14]
[382926430,1756770678527,-512.25,0.0003726,14]
[382926431,1756770678537,-400.0,0.0003726,14]
[382926432,1756770678546,-400.0,0.0003726,14]
[382926433,1756770678556,-718.3,0.0003726,14]
[382926434,1756770678566,-570.54,0.0003726,14]
[382926435,1756770678576,-400.0,0.0003726,14]
[382926436,1756770678586,-400.0,0.0003726,14]
[382926437,1756770678595,-620.27,0.0003726,14]
[382926438,1756770678604,-400.0,0.0003726,14]
[382926439,1756770678614,-801.92,0.0003726,14]
[382926440,1756770678623,-717.79,0.0003726,14]
[382926441,1756770678634,-400.0,0.0003726,14]
[382926442,1756770678643,-400.0,0.0003726,14]
[382926443,1756770678653,-300.0,0.0003726,14]
[382926444,1756770678664,-400.0,0.0003726,14]
[382926445,1756770678901,-201.385348,0.0003726,30]
[382926446,1756770678919,-400.0,0.0003726,14]
[382926447,1756770678929,-400.0,0.0003726,14]
[382926448,1756770678939,-400.0,0.0003726,14]
[382926449,1756770678949,-400.0,0.0003726,14]
[382926450,1756770678958,-400.0,0.0003726,14]
[382926451,1756770678968,-400.0,0.0003726,14]
[382926452,1756770678978,-560.33,0.0003726,14]
[382926453,1756770678987,-400.0,0.0003726,14]
[382926454,1756770678996,-636.66,0.0003726,14]
[382926455,1756770679006,-400.00492624,0.0003726,14]
[382926456,1756770679015,-617.6,0.0003726,14]
[382926457,1756770679025,-943.64,0.0003726,14]
[382926458,1756770679034,-400.0,0.0003726,14]
[382926459,1756770679044,-400.0,0.0003726,14]
[382926460,1756770679053,-400.0,0.0003726,14]
[382926461,1756770679063,-400.0,0.0003726,14]
[382926462,1756770679073,-400.0,0.0003726,14]
[382926463,1756770679082,-522.77,0.0003726,14]
[382926464,1756770679091,-400.0,0.0003726,14]
[382926465,1756770679101,-400.0,0.0003726,14]
[382926466,1756770679111,-702.2,0.0003726,14]
[382926467,1756770679120,-400.0,0.0003726,14]
[382926468,1756770679130,-400.0,0.0003726,14]
[382926469,1756770679140,-400.0,0.0003726,14]
[382926470,1756770679150,-515.86,0.0003726,14]
[382926471,1756770679160,-400.0,0.0003726,14]
[382926472,1756770679170,-442.31,0.0003726,14]
[382926473,1756770679180,-509.88,0.0003726,14]
[382926474,1756770679190,-400.0,0.0003726,14]
[382926475,1756770679199,-400.0,0.0003726,14]
[382926476,1756770679209,-742.73,0.0003726,14]
[382926477,1756770679218,-400.0,0.0003726,14]
[382926478,1756770679228,-400.0,0.0003726,14]
[382926479,1756770679237,-628.03,0.0003726,14]
[382926480,1756770679248,-400.0,0.0003726,14]
[382926481,1756770679257,-151.0,0.0003726,30]
[382926482,1756770679265,-181.868177,0.0003726,30]
[382926483,1756770679274,-653.41,0.0003726,14]
[382926484,1756770679283,-400.0,0.0003726,14]
[382926485,1756770679293,-758.02,0.0003726,14]
[382926486,1756770679302,-416.37,0.0003726,14]
[382926487,1756770679312,-493.06,0.0003726,14]
[382926488,1756770679322,-502.21,0.0003726,14]
[382926489,1756770679331,-400.0,0.0003726,14]
[382926490,1756770679341,-683.32,0.0003726,14]
[382926491,1756770679351,-723.27,0.0003726,14]
[382926492,1756770679361,-400.0,0.0003726,14]
[382926493,1756770679370,-400.0,0.0003726,14]
[382926494,1756770679380,-400.0,0.0003726,14]
[382926495,1756770679392,-400.0,0.0003726,14]
[382926496,1756770679402,-400.0,0.0003726,14]
[382926497,1756770679412,-400.0,0.0003726,14]
[382926498,1756770679423,-1111.64,0.0003726,14]
[382926499,1756770679432,-764.32,0.0003726,14]
[382926500,1756770679442,-400.0,0.0003726,14]
[382926501,1756770679452,-442.4,0.0003726,14]
[382926502,1756770679461,-400.0,0.0003726,14]
[382926503,1756770679471,-400.0,0.0003726,14]
[382926504,1756770679482,-400.0,0.0003726,14]
[382926505,1756770679492,-400.0,0.0003726,14]
[382926506,1756770679503,-495.04,0.0003726,14]
[382926507,1756770679513,-608.82,0.0003726,14]
[382926508,1756770679523,-577.13,0.0003726,14]
[382926509,1756770679532,-400.0,0.0003726,14]
[382926510,1756770679541,-400.0,0.0003726,14]
[382926511,1756770679551,-400.0,0.0003726,14]
[382926512,1756770679560,-400.0,0.0003726,14]
[382926513,1756770679570,-591.78,0.0003726,14]
[382926514,1756770679579,-671.74,0.0003726,14]
[382926515,1756770679589,-400.0,0.0003726,14]
[382926516,1756770679598,-523.71,0.0003726,14]
[382926517,1756770679608,-532.93,0.0003726,14]
[382926518,1756770679617,-714.06,0.0003726,14]
[382926519,1756770679627,-400.0,0.0003726,14]
[382926520,1756770679638,-400.0,0.0003726,14]
[382926521,1756770679648,-496.57,0.0003726,14]
[382926522,1756770679658,-151.0,0.0003726,30]
[382926523,1756770679667,-151.0,0.0003726,30]
[382926524,1756770679676,-400.0,0.0003726,14]
[382926525,1756770679685,-151.0,0.0003726,30]
[382926526,1756770679694,-848.58,0.0003726,14]
[382926527,1756770679702,-151.0,0.0003726,30]
[382926528,1756770679712,-418.56,0.0003726,14]
[382926529,1756770679722,-400.0,0.0003726,14]
[382926530,1756770679731,-367.55882694,0.0003726,14]
[382926531,1756770679740,-151.0,0.0003726,30]
[382926532,1756770679750,-348.92732061,0.0003726,14]
[382926533,1756770679759,-400.0,0.0003726,14]
[382926534,1756770679769,-602.49,0.0003726,14]
[382926535,1756770679779,-400.0,0.0003726,14]
[382926536,1756770679789,-214.50081573,0.0003726,14]
[382926537,1756770679799,-400.0,0.0003726,14]
[382926538,1756770679808,-400.0,0.0003726,14]
[382926539,1756770679819,-697.33,0.0003726,14]
[382926540,1756770679828,-464.16,0.0003726,14]
[382926541,1756770679838,-400.0,0.0003726,14]
[382926542,1756770679848,-400.0,0.0003726,14]
[382926543,1756770679857,-706.47,0.0003726,14]
[382926544,1756770679867,-550.33,0.0003726,14]
[382926545,1756770679877,-829.88,0.0003726,14]
[382926546,1756770679887,-400.0,0.0003726,14]
[382926547,1756770679897,-714.83,0.0003726,14]
[382926548,1756770679907,-400.0,0.0003726,14]
[382926549,1756770679916,-400.0,0.0003726,14]
[382926550,1756770679926,-151.0,0.0003726,30]
[382926551,1756770679935,-400.0,0.0003726,14]
[382926552,1756770679945,-630.47,0.0003726,14]
[382926553,1756770679955,-151.0,0.0003726,30]
[382926554,1756770679964,-151.0,0.0003726,30]
[382926555,1756770679974,-400.0,0.0003726,14]
[382926556,1756770679984,-151.0,0.0003726,30]
[382926557,1756770679993,-568.96,0.0003726,14]
[382926558,1756770680003,-400.0,0.0003726,14]
[382926559,1756770680012,-151.0,0.0003726,30]
[382926560,1756770680022,-400.0,0.0003726,14]
[382926561,1756770680031,-151.0,0.0003726,30]
[382926562,1756770680041,-400.0,0.0003726,14]
[382926563,1756770680051,-400.0,0.0003726,14]
[382926564,1756770680060,-400.0,0.0003726,14]
[382926565,1756770680071,-463.32,0.0003726,14]
[382926566,1756770680080,-151.0,0.0003726,30]
[382926567,1756770680089,-739.73,0.0003726,14]
[382926568,1756770680099,-151.0,0.0003726,30]
[382926569,1756770680109,-537.39,0.0003726,14]
[382926570,1756770680118,-241.168094,0.0003726,30]
[382926571,1756770680128,-151.0,0.0003726,30]
[382926572,1756770680138,-234.206064,0.0003726,30]
[382926573,1756770680147,-241.168094,0.0003726,30]
[382926574,1756770680157,-151.0,0.0003726,30]
[382926575,1756770680167,-756.65,0.0003726,14]
[382926576,1756770680177,-241.168094,0.0003726,30]
[382926577,1756770680186,-159.544769,0.0003726,30]
[382926578,1756770680196,-241.168094,0.0003726,30]
[382926579,1756770680204,-151.0,0.0003726,30]
[382926580,1756770680213,-739.64,0.0003726,14]
[382926581,1756770680223,-221.361652,0.0003726,30]
[382926582,1756770680233,-400.0,0.0003726,14]
[382926583,1756770680242,-241.168094,0.0003726,30]
[382926584,1756770680252,-536.95,0.0003726,14]
[382926585,1756770680262,-221.361652,0.0003726,30]
[382926586,1756770680272,-400.0,0.0003726,14]
[382926587,1756770680282,-241.168094,0.0003726,30]
[382926588,1756770680291,-546.42,0.0003726,14]
[382926589,1756770680301,-330.132096,0.0003726,30]
[382926590,1756770680311,-221.361652,0.0003726,30]
[382926591,1756770680320,-241.168094,0.0003726,30]
[382926592,1756770680330,-330.132096,0.0003726,30]
[382926593,1756770680340,-400.0,0.0003726,14]
[382926594,1756770680349,-241.168094,0.0003726,30]
[382926595,1756770680359,-221.361652,0.0003726,30]
[382926596,1756770680369,-400.0,0.0003726,14]
[382926597,1756770680379,-330.132096,0.0003726,30]
[382926598,1756770680390,-400.0,0.0003726,14]
[382926599,1756770680400,-221.361652,0.0003726,30]
[382926600,1756770680410,-221.361652,0.0003726,30]
[382926601,1756770680420,-330.132096,0.0003726,30]
[382926602,1756770680431,-830.46,0.0003726,14]
[382926603,1756770680441,-221.361652,0.0003726,30]
[382926604,1756770680451,-330.132096,0.0003726,30]
[382926605,1756770680460,-221.361652,0.0003726,30]
[382926606,1756770680471,-330.132096,0.0003726,30]
[382926607,1756770680481,-400.0,0.0003726,14]
[382926608,1756770680491,-874.42,0.0003726,14]
[382926609,1756770680500,-330.132096,0.0003726,30]
[382926610,1756770680510,-330.132096,0.0003726,30]
[382926611,1756770680520,-400.0,0.0003726,14]
[382926612,1756770680530,-400.0,0.0003726,14]
[382926613,1756770680540,-832.23,0.0003726,14]
[382926614,1756770680550,-699.71,0.0003726,14]
[382926615,1756770680560,-400.0,0.0003726,14]
[382926616,1756770680570,-400.0,0.0003726,14]
[382926617,1756770680579,-400.0,0.0003726,14]
[382926618,1756770680589,-400.0,0.0003726,14]
[382926619,1756770680599,-811.44,0.0003726,14]
[382926620,1756770680608,-400.0,0.0003726,14]
[382926621,1756770680617,-851.19,0.0003726,14]
[382926622,1756770680627,-400.0,0.0003726,14]
[382926623,1756770680637,-400.0,0.0003726,14]
[382926624,1756770680647,-400.0,0.0003726,14]
[382926625,1756770680657,-716.63,0.0003726,14]
[382926626,1756770680666,-401.38,0.0003726,14]
[382926627,1756770680676,-652.37,0.0003726,14]
[382926628,1756770680685,-623.91,0.0003726,14]
[382926629,1756770680697,-400.0,0.0003726,14]
[382926630,1756770680706,-714.45,0.0003726,14]
[382926631,1756770680716,-400.0,0.0003726,14]
[382926632,1756770680727,-1257.58,0.0003726,14]
[382926633,1756770680736,-692.39,0.0003726,14]
[382926634,1756770680747,-705.68,0.0003726,14]
[382926635,1756770680758,-400.0,0.0003726,14]
[382926636,1756770680767,-400.0,0.0003726,14]
[382926637,1756770680778,-400.0,0.0003726,14]
[382926638,1756770680788,-400.0,0.0003726,14]
[382926639,1756770680799,-400.0,0.0003726,14]
[382926640,1756770680811,-400.0,0.0003726,14]
[382926641,1756770680822,-400.0,0.0003726,14]
[382926642,1756770680833,-400.0,0.0003726,14]
[382926643,1756770680842,-806.95,0.0003726,14]
[382926644,1756770680852,-761.37,0.0003726,14]
[382926645,1756770680861,-768.03,0.0003726,14]
[382926646,1756770680871,-151.0,0.0003726,30]
[382926647,1756770680881,-400.0,0.0003726,14]
[382926648,1756770680891,-400.0,0.0003726,14]
[382926649,1756770680901,-779.78,0.0003726,14]
[382926650,1756770680910,-400.0,0.0003726,14]
[382926651,1756770680919,-400.0,0.0003726,14]
[382926652,1756770680929,-400.0,0.0003726,14]
[382926653,1756770680938,-435.92,0.0003726,14]
[382926654,1756770680948,-400.0,0.0003726,14]
[382926655,1756770680957,-903.03,0.0003726,14]
[382926656,1756770680966,-400.0,0.0003726,14]
[382926657,1756770680976,-406.52,0.0003726,14]
[382926658,1756770680985,-615.75,0.0003726,14]
[382926659,1756770680995,-932.39,0.0003726,14]
[382926660,1756770681005,-431.76,0.0003726,14]
[382926661,1756770681014,-400.0,0.0003726,14]
[382926662,1756770681024,-400.0,0.0003726,14]
[382926663,1756770681033,-400.0,0.0003726,14]
[382926664,1756770681042,-400.0,0.0003726,14]
[382926665,1756770681052,-666.64,0.0003726,14]
[382926666,1756770681062,-416.66,0.0003726,14]
[382926667,1756770681071,-647.99,0.0003726,14]
[382926668,1756770681081,-994.44,0.0003726,14]
[382926669,1756770681091,-435.83,0.0003726,14]
[382926670,1756770681100,-152.798818,0.0003726,30]
[382926671,1756770681110,-535.07,0.0003726,14]
[382926672,1756770681120,-400.07,0.0003726,14]
[382926673,1756770681130,-168.535303,0.0003726,30]
[382926674,1756770681141,-168.535303,0.0003726,30]
[382926675,1756770681151,-762.36,0.0003726,14]
[382926676,1756770681161,-400.0,0.0003726,14]
[382926677,1756770681171,-168.535303,0.0003726,30]
[382926678,1756770681180,-168.535303,0.0003726,30]
[382926679,1756770681190,-400.0,0.0003726,14]
[382926680,1756770681199,-168.535303,0.0003726,30]
[382926681,1756770681209,-168.535303,0.0003726,30]
[382926682,1756770681219,-400.0,0.0003726,14]
[382926683,1756770681228,-151.0,0.0003726,30]
[382926684,1756770681238,-400.0,0.0003726,14]
[382926685,1756770681247,-732.34,0.0003726,14]
[382926686,1756770681259,-663.37,0.0003726,14]
[382926687,1756770681268,-151.0,0.0003726,30]
[382926688,1756770681278,-168.535303,0.0003726,30]
[382926689,1756770681287,-168.535303,0.0003726,30]
[382926690,1756770681297,-400.0,0.0003726,14]
[382926691,1756770681307,-518.75,0.0003726,14]
[382926692,1756770681316,-400.0,0.0003726,14]
[382926693,1756770681326,-151.0,0.0003726,30]
[382926694,1756770681335,-400.0,0.0003726,14]
[382926695,1756770681344,-400.0,0.0003726,14]
[382926696,1756770681445,-151.0,0.0003726,30]
[382926697,1756770681455,-580.47,0.0003726,14]
[382926698,1756770681465,-400.0,0.0003726,14]
[382926699,1756770681475,-229.118859,0.0003726,30]
[382926700,1756770681485,-229.118859,0.0003726,30]
[382926701,1756770681495,-400.0,0.0003726,14]
[382926702,1756770681503,-703.85,0.0003726,14]
[382926703,1756770681514,-818.14,0.0003726,14]
[382926704,1756770681523,-197.51533729,0.0003726,30]
[382926705,1756770682333,-31.60352171,0.0003726,30]
[382926706,1756770682343,-249.42647829,0.0003726,14]
[382926707,1756770683319,-1204.41,0.00036986,14]
[382926708,1756770683328,-400.0,0.00036986,14]
[382926709,1756770683338,-215.28234833,0.00036986,2]
[382926710,1756770683347,-400.0,0.00036986,14]
[382926711,1756770683357,-150.57352171,0.0003726,14]
[382926712,1756770683366,-229.118859,0.0003726,30]
[382926713,1756770683376,-229.118859,0.0003726,30]
[382926714,1756770683386,-229.118859,0.0003726,30]
[382926715,1756770683399,-400.0,0.0003726,14]
[382926716,1756770683408,-596.25,0.0003726,14]
[382926717,1756770683418,-400.0,0.0003726,14]
[382926718,1756770683427,-303.544083,0.0003726,30]
[382926719,1756770683437,-400.0,0.0003726,14]
[382926720,1756770683446,-550.91,0.0003726,14]
[382926721,1756770683455,-303.544083,0.0003726,30]
[382926722,1756770683466,-229.118859,0.0003726,30]
[382926723,1756770683476,-542.72093796,0.0003726,14]
[382926724,1756770683551,-279.19906204,0.0003726,14]
[382926725,1756770683561,-400.0,0.0003726,14]
[382926726,1756770683571,-303.544083,0.0003726,30]
[382926727,1756770683581,-229.118859,0.0003726,30]
[382926728,1756770683590,-303.544083,0.0003726,30]
[382926729,1756770683600,-455.39,0.0003726,14]
[382926730,1756770683609,-400.0,0.0003726,14]
[382926731,1756770683619,-303.544083,0.0003726,30]
[382926732,1756770683628,-218.5567953,0.0003726,30]
[382926734,1756770742583,155.0,0.00030136,120]
[382926735,1756770886593,2800.0,0.00038046,120]